[Event "*** Titled Tuesday Blitz"]
[Site "Chess.com"]
[Date "2020.12.29"]
[Round "6"]
[White "Rud_Makarian"]
[Black "joppie2"]
[Result "1-0"]
[WhiteElo "2699"]
[BlackElo "2866"]
[TimeControl "180+1"]
[EndTime "11:06:28 PST"]
[Termination "Rud_Makarian won by resignation"]

1. d4 {[%clk 0:03:00.9]} 1... e6 {[%clk 0:02:59.4]} 2. Nf3 {[%clk 0:02:57.1]}
2... f5 {[%clk 0:02:57.7]} 3. Bg5 {[%clk 0:02:51.5]} 3... Be7 {[%clk 0:02:55.9]}
4. h4 {[%clk 0:02:47.7]} 4... Nf6 {[%clk 0:02:55.6]} 5. Nc3 {[%clk 0:02:46.3]}
5... b6 {[%clk 0:02:55.4]} 6. Bxf6 {[%clk 0:02:42.7]} 6... Bxf6 {[%clk
0:02:56.3]} 7. e4 {[%clk 0:02:43.4]} 7... fxe4 {[%clk 0:02:50.9]} 8. Nxe4 {[%clk
0:02:44.3]} 8... Bb7 {[%clk 0:02:51.5]} 9. Bd3 {[%clk 0:02:44.4]} 9... Nc6
{[%clk 0:02:52]} 10. c3 {[%clk 0:02:32.2]} 10... Qe7 {[%clk 0:02:52.5]} 11. Qe2
{[%clk 0:02:30.7]} 11... O-O-O {[%clk 0:02:51.5]} 12. O-O-O {[%clk 0:02:31.2]}
12... Rhf8 {[%clk 0:02:50.4]} 13. Kb1 {[%clk 0:02:29.4]} 13... Kb8 {[%clk
0:02:50.3]} 14. Nxf6 {[%clk 0:02:07.9]} 14... gxf6 {[%clk 0:02:48.8]} 15. g3
{[%clk 0:02:08.4]} 15... Qg7 {[%clk 0:02:47.1]} 16. Rhe1 {[%clk 0:02:06.7]}
16... Ne7 {[%clk 0:02:42.8]} 17. Be4 {[%clk 0:02:04.9]} 17... Bxe4+ {[%clk
0:02:35.6]} 18. Qxe4 {[%clk 0:02:05.8]} 18... Qg6 {[%clk 0:02:36.5]} 19. Kc2
{[%clk 0:02:02.5]} 19... f5 {[%clk 0:02:33.2]} 20. Qd3 {[%clk 0:02:00]} 20... f4
{[%clk 0:02:33.8]} 21. Qxg6 {[%clk 0:01:54.9]} 21... Nxg6 {[%clk 0:02:31.7]} 22.
g4 {[%clk 0:01:55.8]} 22... Kb7 {[%clk 0:02:24.2]} 23. h5 {[%clk 0:01:54.1]}
23... Ne7 {[%clk 0:02:22.9]} 24. Kd3 {[%clk 0:01:54.6]} 24... Rg8 {[%clk
0:02:21.1]} 25. Rg1 {[%clk 0:01:55]} 25... b5 {[%clk 0:02:17.9]} 26. g5 {[%clk
0:01:53.9]} 26... Rdf8 {[%clk 0:02:15]} 27. Rg4 {[%clk 0:01:54]} 27... Rf5
{[%clk 0:02:14.5]} 28. Rdg1 {[%clk 0:01:54.5]} 28... d6 {[%clk 0:02:13.9]} 29.
Nh4 {[%clk 0:01:40.3]} 29... Rf7 {[%clk 0:02:09.1]} 30. Re1 {[%clk 0:01:39.6]}
30... Nf5 {[%clk 0:01:41.6]} 31. Nxf5 {[%clk 0:01:39.6]} 31... Rxf5 {[%clk
0:01:40.9]} 32. Reg1 {[%clk 0:01:39.7]} 32... Kc6 {[%clk 0:01:39.6]} 33. Ke4
{[%clk 0:01:39.1]} 33... Rgf8 {[%clk 0:01:36.6]} 34. h6 {[%clk 0:01:30.7]} 34...
f3 {[%clk 0:01:33.6]} 35. g6 {[%clk 0:01:28.8]} 35... hxg6 {[%clk 0:01:32.2]}
36. Rxg6 {[%clk 0:01:29.4]} 36... e5 {[%clk 0:01:25.3]} 37. h7 {[%clk
0:01:18.9]} 37... Rh5 {[%clk 0:00:59.5]} 38. dxe5 {[%clk 0:00:57.6]} 38... Rxe5+
{[%clk 0:00:46.5]} 39. Kd3 {[%clk 0:00:56.8]} 39... Rd5+ {[%clk 0:00:46.3]} 40.
Kc2 {[%clk 0:00:56.6]} 40... Rh8 {[%clk 0:00:47.2]} 41. Rh1 {[%clk 0:00:52.1]}
41... Re5 {[%clk 0:00:25.1]} 42. Rg8 {[%clk 0:00:51]} 42... Re2+ {[%clk
0:00:25.7]} 43. Kb3 {[%clk 0:00:50.5]} 43... Rxh7 {[%clk 0:00:23.5]} 44. Rxh7
{[%clk 0:00:51.4]} 44... Rxf2 {[%clk 0:00:21.2]} 45. Rf7 {[%clk 0:00:51.5]}
45... a5 {[%clk 0:00:20.5]} 46. Rgf8 {[%clk 0:00:48.1]} 46... Kb6 {[%clk
0:00:19.1]} 47. Rxf3 {[%clk 0:00:47.7]} 47... Rh2 {[%clk 0:00:19.6]} 48. Rf2
{[%clk 0:00:46.5]} 48... Rh3 {[%clk 0:00:19]} 49. R8f3 {[%clk 0:00:46.4]} 49...
Rh4 {[%clk 0:00:18.8]} 50. Rf4 {[%clk 0:00:46.9]} 50... Rh3 {[%clk 0:00:18.8]}
51. a4 {[%clk 0:00:47.1]} 51... b4 {[%clk 0:00:18.1]} 52. R2f3 {[%clk
0:00:47.1]} 52... Rh2 {[%clk 0:00:17.6]} 53. cxb4 {[%clk 0:00:47.4]} 53... axb4
{[%clk 0:00:18.5]} 54. Rxb4+ {[%clk 0:00:47.9]} 54... Ka5 {[%clk 0:00:18.9]} 55.
Rb5+ {[%clk 0:00:46.8]} 55... Ka6 {[%clk 0:00:19.4]} 56. Rf8 {[%clk 0:00:45.8]}
56... Ka7 {[%clk 0:00:19.1]} 57. Rf7 {[%clk 0:00:45.6]} 57... Ka6 {[%clk
0:00:18]} 58. Rxc7 {[%clk 0:00:44.3]} 58... d5 {[%clk 0:00:18.4]} 59. Rc6+
{[%clk 0:00:44]} 59... Ka7 {[%clk 0:00:18.7]} 60. Rxd5 {[%clk 0:00:43.8]} 60...
Kb7 {[%clk 0:00:18.8]} 61. Rc3 {[%clk 0:00:43.4]} 1-0

[Event "*** Titled Tuesday Blitz"]
[Site "Chess.com"]
[Date "2020.12.29"]
[Round "6"]
[White "AliKa2810"]
[Black "omer1997"]
[Result "1-0"]
[WhiteElo "2596"]
[BlackElo "2373"]
[TimeControl "180+1"]
[EndTime "11:06:30 PST"]
[Termination "AliKa2810 won on time"]

1. Nf3 {[%clk 0:03:00.9]} 1... d5 {[%clk 0:02:54.2]} 2. g3 {[%clk 0:03:01.3]}
2... Nf6 {[%clk 0:02:53.6]} 3. Bg2 {[%clk 0:03:01.6]} 3... Bg4 {[%clk
0:02:52.4]} 4. O-O {[%clk 0:03:01.7]} 4... e6 {[%clk 0:02:51]} 5. h3 {[%clk
0:03:01.8]} 5... Bxf3 {[%clk 0:02:51.2]} 6. Bxf3 {[%clk 0:03:01.6]} 6... Be7
{[%clk 0:02:51.8]} 7. d3 {[%clk 0:02:59.2]} 7... O-O {[%clk 0:02:52.1]} 8. Bg2
{[%clk 0:02:56.4]} 8... Nbd7 {[%clk 0:02:50.4]} 9. Nc3 {[%clk 0:02:51.6]} 9...
c6 {[%clk 0:02:50.2]} 10. e4 {[%clk 0:02:51.7]} 10... dxe4 {[%clk 0:02:31.7]}
11. Nxe4 {[%clk 0:02:49.5]} 11... Nxe4 {[%clk 0:02:31.4]} 12. Bxe4 {[%clk
0:02:45.4]} 12... Nf6 {[%clk 0:02:31]} 13. Bg2 {[%clk 0:02:45.6]} 13... Bc5
{[%clk 0:02:28.9]} 14. Qe2 {[%clk 0:02:43.7]} 14... Qb6 {[%clk 0:02:21.5]} 15.
c3 {[%clk 0:02:41.3]} 15... h6 {[%clk 0:02:20.7]} 16. d4 {[%clk 0:02:41]} 16...
Be7 {[%clk 0:02:20.7]} 17. b3 {[%clk 0:02:16.3]} 17... Rfd8 {[%clk 0:02:19.5]}
18. Bb2 {[%clk 0:02:15.4]} 18... a5 {[%clk 0:02:15.9]} 19. c4 {[%clk 0:01:29.8]}
19... a4 {[%clk 0:02:13.9]} 20. Rab1 {[%clk 0:01:29.5]} 20... axb3 {[%clk
0:01:48.3]} 21. axb3 {[%clk 0:01:30.4]} 21... Ra2 {[%clk 0:01:37.9]} 22. Qf3
{[%clk 0:01:29.7]} 22... Ba3 {[%clk 0:01:25.8]} 23. Bc3 {[%clk 0:01:20.6]} 23...
Bb4 {[%clk 0:01:20.8]} 24. Bb2 {[%clk 0:01:12.5]} 24... Ba3 {[%clk 0:01:15.2]}
25. Ba1 {[%clk 0:01:12.6]} 25... Be7 {[%clk 0:01:13.1]} 26. b4 {[%clk
0:00:59.2]} 26... Rxa1 {[%clk 0:00:33.1]} 27. Rxa1 {[%clk 0:00:48.1]} 27... Rxd4
{[%clk 0:00:23.3]} 28. Ra8+ {[%clk 0:00:45.9]} 28... Kh7 {[%clk 0:00:22.5]} 29.
b5 {[%clk 0:00:28.4]} 29... cxb5 {[%clk 0:00:22.4]} 30. cxb5 {[%clk 0:00:28.5]}
30... Qxb5 {[%clk 0:00:19.3]} 31. Qxb7 {[%clk 0:00:26.3]} 31... Qxb7 {[%clk
0:00:20.2]} 32. Bxb7 {[%clk 0:00:26.4]} 32... Rd2 {[%clk 0:00:18.7]} 33. Rc8
{[%clk 0:00:24]} 33... Nd5 {[%clk 0:00:13]} 34. Re1 {[%clk 0:00:20.5]} 34... Bf6
{[%clk 0:00:10.3]} 35. Ba6 {[%clk 0:00:12.1]} 35... Bd4 {[%clk 0:00:09.4]} 36.
Rf1 {[%clk 0:00:12.5]} 36... g6 {[%clk 0:00:08.5]} 37. h4 {[%clk 0:00:11.4]}
37... Kg7 {[%clk 0:00:08.8]} 38. Bc4 {[%clk 0:00:11.6]} 38... Nc3 {[%clk
0:00:07.1]} 39. Kg2 {[%clk 0:00:11]} 39... Ne4 {[%clk 0:00:06.7]} 40. Rc7 {[%clk
0:00:09.5]} 40... Nxf2 {[%clk 0:00:05]} 41. Bxe6 {[%clk 0:00:09.4]} 41... Ne4+
{[%clk 0:00:04]} 42. Kf3 {[%clk 0:00:08.4]} 42... Nd6 {[%clk 0:00:02.9]} 43.
Bxf7 {[%clk 0:00:06.3]} 43... Nxf7 {[%clk 0:00:02.9]} 44. Ke4 {[%clk 0:00:06.7]}
44... Bf6 {[%clk 0:00:02.7]} 45. Rc6 {[%clk 0:00:05.6]} 1-0

[Event "*** Titled Tuesday Blitz"]
[Site "Chess.com"]
[Date "2020.12.29"]
[Round "6"]
[White "ExcitingTrap"]
[Black "Alexey_Ustinov"]
[Result "1-0"]
[WhiteElo "2355"]
[BlackElo "2452"]
[TimeControl "180+1"]
[EndTime "11:06:30 PST"]
[Termination "ExcitingTrap won on time"]

1. e4 {[%clk 0:03:00.9]} 1... d5 {[%clk 0:02:58.4]} 2. exd5 {[%clk 0:03:00.7]}
2... Qxd5 {[%clk 0:02:59]} 3. Nc3 {[%clk 0:03:01.2]} 3... Qa5 {[%clk 0:02:58.6]}
4. d4 {[%clk 0:03:01.3]} 4... Nf6 {[%clk 0:02:58.3]} 5. Bd2 {[%clk 0:02:59.2]}
5... Bg4 {[%clk 0:02:31.7]} 6. Be2 {[%clk 0:02:55.2]} 6... Bxe2 {[%clk
0:02:27.2]} 7. Qxe2 {[%clk 0:02:52.4]} 7... Nc6 {[%clk 0:02:25.1]} 8. Nf3 {[%clk
0:02:52.4]} 8... O-O-O {[%clk 0:02:24.2]} 9. Qc4 {[%clk 0:02:46.8]} 9... e6
{[%clk 0:02:17.9]} 10. O-O {[%clk 0:02:45.5]} 10... Qb4 {[%clk 0:01:56.5]} 11.
Qxb4 {[%clk 0:02:31.6]} 11... Nxb4 {[%clk 0:01:57.4]} 12. Rac1 {[%clk
0:02:31.4]} 12... Nc6 {[%clk 0:01:51.5]} 13. Be3 {[%clk 0:02:24.1]} 13... h6
{[%clk 0:01:37.9]} 14. h3 {[%clk 0:02:16.4]} 14... Bb4 {[%clk 0:01:18.8]} 15.
Ne2 {[%clk 0:02:02.6]} 15... Ba5 {[%clk 0:01:16.3]} 16. c4 {[%clk 0:01:59.5]}
16... Ne7 {[%clk 0:01:00.6]} 17. Ne5 {[%clk 0:01:52.4]} 17... Rhf8 {[%clk
0:00:58.8]} 18. a3 {[%clk 0:01:45.5]} 18... c6 {[%clk 0:00:58.1]} 19. b4 {[%clk
0:01:41.3]} 19... Bc7 {[%clk 0:00:58.5]} 20. b5 {[%clk 0:01:37.9]} 20... Nd7
{[%clk 0:00:46.9]} 21. Nf3 {[%clk 0:01:25.1]} 21... Nf5 {[%clk 0:00:42.8]} 22.
bxc6 {[%clk 0:01:18.3]} 22... bxc6 {[%clk 0:00:42.3]} 23. Nc3 {[%clk 0:01:12.4]}
23... Nf6 {[%clk 0:00:34]} 24. Rfd1 {[%clk 0:01:05.3]} 24... Nxe3 {[%clk
0:00:27.9]} 25. fxe3 {[%clk 0:01:06.2]} 25... Kb7 {[%clk 0:00:19.5]} 26. Rb1+
{[%clk 0:01:04.9]} 26... Ka8 {[%clk 0:00:19.3]} 27. Na4 {[%clk 0:01:02]} 27...
Rb8 {[%clk 0:00:16.8]} 28. Nc5 {[%clk 0:01:00.1]} 28... Rxb1 {[%clk 0:00:14.5]}
29. Rxb1 {[%clk 0:01:01]} 29... Rb8 {[%clk 0:00:13.7]} 30. Rxb8+ {[%clk
0:00:59.8]} 30... Kxb8 {[%clk 0:00:14.6]} 31. Kf2 {[%clk 0:00:54]} 31... Kc8
{[%clk 0:00:14.2]} 32. a4 {[%clk 0:00:46.4]} 32... Bd6 {[%clk 0:00:11.4]} 33.
Nd3 {[%clk 0:00:38.2]} 33... Kd8 {[%clk 0:00:10.3]} 34. Nd2 {[%clk 0:00:33.9]}
34... Kc7 {[%clk 0:00:08.9]} 35. e4 {[%clk 0:00:32.3]} 35... Bf8 {[%clk
0:00:07.1]} 36. e5 {[%clk 0:00:30.2]} 36... Nd7 {[%clk 0:00:03.9]} 37. c5 {[%clk
0:00:19.9]} 37... Be7 {[%clk 0:00:04.3]} 38. Ne4 {[%clk 0:00:19.9]} 38... Nb8
{[%clk 0:00:04.3]} 39. Nb4 {[%clk 0:00:18.8]} 39... Nd7 {[%clk 0:00:03]} 40. g4
{[%clk 0:00:18.4]} 40... f5 {[%clk 0:00:02.1]} 41. gxf5 {[%clk 0:00:16.7]} 41...
exf5 {[%clk 0:00:01.7]} 42. Ng3 {[%clk 0:00:17]} 1-0

[Event "*** Titled Tuesday Blitz"]
[Site "Chess.com"]
[Date "2020.12.29"]
[Round "6"]
[White "Semen_Khanin"]
[Black "Alomaterapia"]
[Result "0-1"]
[WhiteElo "2787"]
[BlackElo "2523"]
[TimeControl "180+1"]
[EndTime "11:06:31 PST"]
[Termination "Alomaterapia won by checkmate"]

1. e4 {[%clk 0:03:00.9]} 1... e5 {[%clk 0:02:59.8]} 2. Nf3 {[%clk 0:03:00.7]}
2... Nc6 {[%clk 0:03:00.4]} 3. Bc4 {[%clk 0:03:00.3]} 3... Nf6 {[%clk
0:02:58.8]} 4. d3 {[%clk 0:03:00.3]} 4... h6 {[%clk 0:02:58.9]} 5. O-O {[%clk
0:02:58.4]} 5... d6 {[%clk 0:02:59.2]} 6. a4 {[%clk 0:02:56.8]} 6... g5 {[%clk
0:02:57.6]} 7. c3 {[%clk 0:02:54.8]} 7... Bg7 {[%clk 0:02:57.1]} 8. Nbd2 {[%clk
0:02:53.9]} 8... g4 {[%clk 0:02:56.8]} 9. Ne1 {[%clk 0:02:50.1]} 9... Nh5 {[%clk
0:02:30.4]} 10. g3 {[%clk 0:02:47.6]} 10... f5 {[%clk 0:02:21.5]} 11. f3 {[%clk
0:02:27.9]} 11... f4 {[%clk 0:01:57.9]} 12. fxg4 {[%clk 0:02:19.4]} 12... Nf6
{[%clk 0:01:54.1]} 13. h3 {[%clk 0:02:16.4]} 13... h5 {[%clk 0:01:45]} 14. g5
{[%clk 0:02:12]} 14... Bxh3 {[%clk 0:01:44.7]} 15. gxf4 {[%clk 0:02:09.7]} 15...
Bxf1 {[%clk 0:01:41.7]} 16. Nxf1 {[%clk 0:02:09.6]} 16... exf4 {[%clk
0:01:37.4]} 17. gxf6 {[%clk 0:02:07.3]} 17... Qxf6 {[%clk 0:01:38.3]} 18. Nf3
{[%clk 0:02:02.3]} 18... O-O-O {[%clk 0:01:37.7]} 19. N1h2 {[%clk 0:01:51.9]}
19... Kb8 {[%clk 0:01:26.5]} 20. Bd2 {[%clk 0:01:50.7]} 20... Ne7 {[%clk
0:01:25.2]} 21. Qe2 {[%clk 0:01:49.3]} 21... d5 {[%clk 0:01:24.5]} 22. Ba2
{[%clk 0:01:47.4]} 22... Qb6+ {[%clk 0:01:22.7]} 23. Kh1 {[%clk 0:01:15.4]}
23... Qxb2 {[%clk 0:01:22]} 24. Qe1 {[%clk 0:01:11.3]} 24... dxe4 {[%clk
0:01:16.9]} 25. dxe4 {[%clk 0:01:02.9]} 25... Rxd2 {[%clk 0:01:11.5]} 26. Nxd2
{[%clk 0:01:02.9]} 26... Bxc3 {[%clk 0:01:11.1]} 27. Rd1 {[%clk 0:00:46]} 27...
Qxa2 {[%clk 0:01:06.4]} 28. Qh4 {[%clk 0:00:46]} 28... Qc2 {[%clk 0:00:56.6]}
29. Rg1 {[%clk 0:00:45.6]} 29... Nc8 {[%clk 0:00:42.3]} 30. Ndf3 {[%clk
0:00:40.1]} 30... Qxe4 {[%clk 0:00:39.6]} 31. Qg5 {[%clk 0:00:38.7]} 31... Qxa4
{[%clk 0:00:36.8]} 32. Qc5 {[%clk 0:00:36.9]} 32... Qb4 {[%clk 0:00:31.9]} 33.
Qf5 {[%clk 0:00:35.9]} 33... a5 {[%clk 0:00:30]} 34. Rb1 {[%clk 0:00:35.9]}
34... Qc4 {[%clk 0:00:23.5]} 35. Rc1 {[%clk 0:00:30.2]} 35... Nd6 {[%clk
0:00:21.7]} 36. Qc2 {[%clk 0:00:25.6]} 36... Ne4 {[%clk 0:00:20.9]} 37. Rb1
{[%clk 0:00:14.8]} 37... Rg8 {[%clk 0:00:19.8]} 38. Nf1 {[%clk 0:00:13.9]} 38...
Qc6 {[%clk 0:00:17.1]} 39. Qe2 {[%clk 0:00:12]} 39... Bb4 {[%clk 0:00:14.1]} 40.
Kh2 {[%clk 0:00:08.9]} 40... Nc3 {[%clk 0:00:14.2]} 41. Qd3 {[%clk 0:00:04.4]}
41... Nxb1 {[%clk 0:00:13.7]} 42. Kh3 {[%clk 0:00:03.8]} 42... Nc3 {[%clk
0:00:13.1]} 43. N1h2 {[%clk 0:00:03.9]} 43... Ne4 {[%clk 0:00:12.7]} 44. Kh4
{[%clk 0:00:03.5]} 44... Qf6+ {[%clk 0:00:11.8]} 45. Kxh5 {[%clk 0:00:02.5]}
45... Qh8# {[%clk 0:00:10.7]} 0-1

[Event "*** Titled Tuesday Blitz"]
[Site "Chess.com"]
[Date "2020.12.29"]
[Round "6"]
[White "malakismayil"]
[Black "Schack-Hugo"]
[Result "1-0"]
[WhiteElo "2306"]
[BlackElo "2162"]
[TimeControl "180+1"]
[EndTime "11:06:31 PST"]
[Termination "malakismayil won on time"]

1. e4 {[%clk 0:03:00.9]} 1... c5 {[%clk 0:02:59.7]} 2. Nf3 {[%clk 0:02:58.2]}
2... d6 {[%clk 0:02:59.5]} 3. d4 {[%clk 0:02:56.8]} 3... cxd4 {[%clk 0:03:00.4]}
4. Nxd4 {[%clk 0:02:57.2]} 4... Nf6 {[%clk 0:03:00.6]} 5. Nc3 {[%clk 0:02:57.7]}
5... a6 {[%clk 0:03:00.5]} 6. Bc4 {[%clk 0:02:58]} 6... e6 {[%clk 0:02:59.9]} 7.
O-O {[%clk 0:02:57.6]} 7... Nbd7 {[%clk 0:02:59.6]} 8. Be3 {[%clk 0:02:46.8]}
8... Nc5 {[%clk 0:02:58.2]} 9. Bd3 {[%clk 0:02:44.1]} 9... Nxd3 {[%clk
0:02:56.6]} 10. cxd3 {[%clk 0:02:45]} 10... Be7 {[%clk 0:02:41]} 11. f4 {[%clk
0:02:42.7]} 11... O-O {[%clk 0:02:40.8]} 12. Kh1 {[%clk 0:02:39.2]} 12... Qd7
{[%clk 0:01:42.9]} 13. Qe2 {[%clk 0:02:27.7]} 13... b5 {[%clk 0:01:42.3]} 14. a3
{[%clk 0:02:26.2]} 14... Bb7 {[%clk 0:01:41.3]} 15. Rac1 {[%clk 0:02:21.7]}
15... Rac8 {[%clk 0:01:39.4]} 16. h3 {[%clk 0:02:19.5]} 16... Ne8 {[%clk
0:01:08.8]} 17. f5 {[%clk 0:02:17.4]} 17... e5 {[%clk 0:01:04.2]} 18. Nf3 {[%clk
0:02:16]} 18... f6 {[%clk 0:01:02.8]} 19. d4 {[%clk 0:02:09.4]} 19... Nc7 {[%clk
0:00:36.9]} 20. d5 {[%clk 0:02:07.3]} 20... a5 {[%clk 0:00:31.4]} 21. Qf2 {[%clk
0:01:57.6]} 21... b4 {[%clk 0:00:29.4]} 22. axb4 {[%clk 0:01:55.7]} 22... axb4
{[%clk 0:00:30.3]} 23. Ne2 {[%clk 0:01:56.1]} 23... Na6 {[%clk 0:00:21.2]} 24.
g4 {[%clk 0:01:44.4]} 24... Nc5 {[%clk 0:00:20.4]} 25. Bxc5 {[%clk 0:01:40.3]}
25... dxc5 {[%clk 0:00:20.4]} 26. Rfd1 {[%clk 0:01:37.2]} 26... c4 {[%clk
0:00:18.4]} 27. Qb6 {[%clk 0:01:31.7]} 27... Bc5 {[%clk 0:00:17]} 28. Qe6+
{[%clk 0:01:26.5]} 28... Qxe6 {[%clk 0:00:16.2]} 29. fxe6 {[%clk 0:01:27.4]}
29... Bd6 {[%clk 0:00:11.5]} 30. Rc2 {[%clk 0:01:20]} 30... Rc7 {[%clk
0:00:11.3]} 31. Rdc1 {[%clk 0:01:19.1]} 31... Rfc8 {[%clk 0:00:11]} 32. Nd2
{[%clk 0:01:18.2]} 32... Ba6 {[%clk 0:00:10.3]} 33. Ng3 {[%clk 0:01:14.8]} 33...
g6 {[%clk 0:00:08.3]} 34. h4 {[%clk 0:01:13.6]} 34... Kf8 {[%clk 0:00:08]} 35.
h5 {[%clk 0:01:13.6]} 35... Ke7 {[%clk 0:00:08]} 36. Kg2 {[%clk 0:01:13.6]}
36... c3 {[%clk 0:00:06.3]} 37. bxc3 {[%clk 0:01:13]} 37... Rxc3 {[%clk
0:00:05]} 38. Rxc3 {[%clk 0:01:12.3]} 38... Rxc3 {[%clk 0:00:05.9]} 39. Ra1
{[%clk 0:01:10.7]} 39... Bd3 {[%clk 0:00:03.3]} 40. Ra7+ {[%clk 0:01:10.3]}
40... Rc7 {[%clk 0:00:03.3]} 41. Ra8 {[%clk 0:01:06.1]} 41... Rc2 {[%clk
0:00:03.4]} 42. Ra7+ {[%clk 0:01:03.7]} 42... Kd8 {[%clk 0:00:03.3]} 43. Rd7+
{[%clk 0:01:03]} 43... Ke8 {[%clk 0:00:03.3]} 44. Rxd6 {[%clk 0:01:03.9]} 44...
Rxd2+ {[%clk 0:00:03.5]} 45. Kf3 {[%clk 0:01:04.4]} 45... b3 {[%clk 0:00:03.9]}
46. Rb6 {[%clk 0:01:04.6]} 46... b2 {[%clk 0:00:04.1]} 47. Rb8+ {[%clk
0:00:56.1]} 47... Ke7 {[%clk 0:00:03.3]} 48. Rb7+ {[%clk 0:00:52.9]} 48... Ke8
{[%clk 0:00:03.1]} 49. Rb8+ {[%clk 0:00:50]} 49... Ke7 {[%clk 0:00:03.4]} 50.
Rb7+ {[%clk 0:00:50.9]} 50... Kd6 {[%clk 0:00:03.6]} 51. e7 {[%clk 0:00:47.1]}
51... b1=Q {[%clk 0:00:03.6]} 52. Rxb1 {[%clk 0:00:46.1]} 52... Kxe7 {[%clk
0:00:03.5]} 53. Rb7+ {[%clk 0:00:45.1]} 53... Kd6 {[%clk 0:00:03.4]} 54. Rxh7
{[%clk 0:00:44.6]} 54... g5 {[%clk 0:00:02.2]} 55. Rf7 {[%clk 0:00:43.8]} 55...
Kc5 {[%clk 0:00:01.6]} 56. Rxf6 {[%clk 0:00:44.1]} 56... Kd4 {[%clk 0:00:01.7]}
57. d6 {[%clk 0:00:42.8]} 1-0

[Event "*** Titled Tuesday Blitz"]
[Site "Chess.com"]
[Date "2020.12.29"]
[Round "6"]
[White "Sjakkerntobi"]
[Black "djano"]
[Result "1-0"]
[WhiteElo "2335"]
[BlackElo "2445"]
[TimeControl "180+1"]
[EndTime "11:06:32 PST"]
[Termination "Sjakkerntobi won by resignation"]

1. e4 {[%clk 0:03:00.9]} 1... c5 {[%clk 0:02:59.7]} 2. Nf3 {[%clk 0:03:01.1]}
2... g6 {[%clk 0:03:00.1]} 3. d4 {[%clk 0:03:01.6]} 3... cxd4 {[%clk 0:03:01]}
4. Nxd4 {[%clk 0:03:02.1]} 4... Nc6 {[%clk 0:03:00.4]} 5. Nc3 {[%clk 0:03:01.7]}
5... Bg7 {[%clk 0:03:00.1]} 6. Be3 {[%clk 0:03:02.4]} 6... Nf6 {[%clk
0:02:57.2]} 7. Bc4 {[%clk 0:03:02.3]} 7... O-O {[%clk 0:02:54.1]} 8. Bb3 {[%clk
0:03:02.1]} 8... Re8 {[%clk 0:02:53.5]} 9. O-O {[%clk 0:02:57.6]} 9... d6 {[%clk
0:02:37.8]} 10. h3 {[%clk 0:02:53.9]} 10... Na5 {[%clk 0:02:35.9]} 11. f4 {[%clk
0:02:47.4]} 11... Nxb3 {[%clk 0:02:35]} 12. axb3 {[%clk 0:02:48.3]} 12... Nd7
{[%clk 0:01:55.3]} 13. Qf3 {[%clk 0:02:40.4]} 13... Nc5 {[%clk 0:01:44.3]} 14.
Rae1 {[%clk 0:02:27.4]} 14... Bd7 {[%clk 0:01:43]} 15. e5 {[%clk 0:02:12.2]}
15... Ne6 {[%clk 0:01:28.7]} 16. Nxe6 {[%clk 0:01:08.5]} 16... Bxe6 {[%clk
0:01:29.6]} 17. Qxb7 {[%clk 0:01:08.1]} 17... dxe5 {[%clk 0:01:24.6]} 18. fxe5
{[%clk 0:00:58.1]} 18... Qa5 {[%clk 0:01:19]} 19. Bf4 {[%clk 0:00:40.6]} 19...
Qc5+ {[%clk 0:01:11]} 20. Kh1 {[%clk 0:00:40]} 20... a5 {[%clk 0:01:08.8]} 21.
Qf3 {[%clk 0:00:39.7]} 21... Red8 {[%clk 0:00:59.6]} 22. Rf2 {[%clk 0:00:25.6]}
22... Rac8 {[%clk 0:00:57.4]} 23. Ne4 {[%clk 0:00:22.2]} 23... Qc6 {[%clk
0:00:55.3]} 24. Ng5 {[%clk 0:00:20.1]} 24... Bd5 {[%clk 0:00:54.5]} 25. Qg3
{[%clk 0:00:18.7]} 25... h6 {[%clk 0:00:54.4]} 26. Nf3 {[%clk 0:00:17.7]} 26...
Be4 {[%clk 0:00:52.5]} 27. c3 {[%clk 0:00:16.9]} 27... Qb7 {[%clk 0:00:49.6]}
28. Nd4 {[%clk 0:00:15.3]} 28... e6 {[%clk 0:00:47.4]} 29. Qe3 {[%clk
0:00:14.1]} 29... Bd5 {[%clk 0:00:46.2]} 30. Bxh6 {[%clk 0:00:14.2]} 30... Bh8
{[%clk 0:00:45]} 31. Qf4 {[%clk 0:00:13.1]} 31... Rd7 {[%clk 0:00:43.6]} 32. Bg5
{[%clk 0:00:13.3]} 32... Bg7 {[%clk 0:00:38.3]} 33. Bf6 {[%clk 0:00:13.7]} 33...
Bxb3 {[%clk 0:00:33.9]} 34. Bxg7 {[%clk 0:00:13.7]} 34... Kxg7 {[%clk
0:00:34.8]} 35. Qf6+ {[%clk 0:00:14.2]} 35... Kg8 {[%clk 0:00:34.2]} 36. Rf4
{[%clk 0:00:14.1]} 36... Bd1 {[%clk 0:00:16.6]} 37. Rxd1 {[%clk 0:00:11.9]}
37... g5 {[%clk 0:00:08.6]} 38. Qxg5+ {[%clk 0:00:11.6]} 38... Kf8 {[%clk
0:00:09.1]} 39. Qh6+ {[%clk 0:00:11.9]} 39... Ke8 {[%clk 0:00:07]} 40. Qh8+
{[%clk 0:00:11.8]} 40... Ke7 {[%clk 0:00:06.7]} 41. Qf6+ {[%clk 0:00:11.6]}
41... Ke8 {[%clk 0:00:07.2]} 42. Rg4 {[%clk 0:00:11.8]} 42... Re7 {[%clk
0:00:06.6]} 43. Rg8+ {[%clk 0:00:08.6]} 43... Kd7 {[%clk 0:00:06.5]} 44. Nf3+
{[%clk 0:00:07.6]} 44... Kc7 {[%clk 0:00:05.8]} 45. Qxe7+ {[%clk 0:00:07.8]} 1-0